Cogmind - Beta 13 @@@ ROGUE MODE // 2024.04.14 @ 22:29:13 Player: opdo Result: Self-destructed Performance ------------- Evolutions (2) 1000 Regions Visited (6) 1200 Robots Destroyed (32) 160 Value Destroyed (755) 755 Prototype IDs (26) 520 Alien Tech Used (0) 0 Bonus (500) 500 TOTAL SCORE: 4135 Bonus ------- Entered Garrisons 200 Aligned with FarCom 300 Cogmind --------- Core Integrity 83/550 Matter 199/300 Energy 52/100 System Corruption 6% Temperature Cool (12) Movement Core (100) Ox1 Location -8/Garrison Parts ------- > --- POWER (1) -------- (None) > --- PROPULSION (4) --- (None) > --- UTILITY (4) ------ Small Storage Unit Advanced Weight Redist. System Hacking Suite > --- WEAPON (2) ------- (None) > --- INVENTORY (8) ---- Light Ion Engine Huge Storage Unit Target Analyzer Improved Light Armor Plating Small Laser Peak State ------------ > --- POWER ------------ Light Nuclear Core > --- PROPULSION ------- Flying Fortress v7 > --- UTILITY ---------- Small Storage Unit Advanced Weight Redist. System Structural Scanner Hacking Suite > --- WEAPON ----------- Pulse Rifle Advanced Beam Cannon > --- INVENTORY -------- Ion Engine Light Ion Engine Light Deuterium Engine Cesium-ion Thruster Huge Storage Unit Improved Light Armor Plating Small Laser Light Assault Rifle [Rating: 50] Favorites ----------- Power Light Angular Momentum Engine Engine Light Angular Momentum Engine Power Core Light Nuclear Core Propulsion Aluminum Leg Leg Aluminum Leg Wheel Wheel Flight Unit Flying Fortress v7 Utility Structural Scanner Device Structural Scanner Storage Small Storage Unit Hackware Hacking Suite Weapon Small Laser Energy Gun Small Laser Energy Cannon Advanced Beam Cannon Ballistic Gun Light Assault Rifle Build | -11 -10 -10 -10 -9 -8 -8 ------- Run | Yrd Mat Min Exi Min Mat Gar Slots Evolved 4 | . . . . . 4 . Power . | . . . . . . . Propulsion 2 | . . . . . 2 . Utility 2 | . . . . . 2 . Weapon . | . . . . . . . Parts Attached 32 | 7 . 3 2 2 12 6 Power 6 | 1 . 2 . . 1 2 Engine 5 | 1 . 2 . . . 2 Core 1 | . . . . . 1 . Reactor . | . . . . . . . Propulsion 6 | 2 . . 2 . 1 1 Treads . | . . . . . . . Leg 2 | 2 . . . . . . Wheel 2 | . . . 2 . . . Hover . | . . . . . . . Flight 2 | . . . . . 1 1 Utility 11 | 2 . 1 . 1 7 . Device 5 | 1 . 1 . . 3 . Storage 5 | 1 . . . 1 3 . Processor . | . . . . . . . Hackware 1 | . . . . . 1 . Protection . | . . . . . . . Artifact . | . . . . . . . Weapon 9 | 2 . . . 1 3 3 Energy Gun 6 | 2 . . . 1 2 1 Energy Cannon 1 | . . . . . . 1 Ballistic Gun 2 | . . . . . 1 1 Ballistic Cannon . | . . . . . . . Launcher . | . . . . . . . Special Weapon . | . . . . . . . Impact Weapon . | . . . . . . . Slashing Weapon . | . . . . . . . Piercing Weapon . | . . . . . . . Special Melee Weapon . | . . . . . . . Unidentified Prototypes 1 | . . . . . . 1 Parts Lost 13 | . 1 1 . 1 1 9 Power 5 | . . 1 . . 1 3 Propulsion 2 | . . . . . . 2 Utility 2 | . 1 . . . . 1 Weapon 4 | . . . . 1 . 3 Highest Loss Streak 9 | . 1 1 . 1 1 9 To Critical Strikes . | . . . . . . . Average Slot Usage (%) 87 | . 99 99 100 100 64 66 Engine 9 | . 14 13 14 14 2 2 Core 2 | . . . . . 6 4 Leg 14 | . 28 28 16 . . . Wheel 3 | . . . 11 28 . . Flight 2 | . . . . . 9 6 Device 15 | . 13 14 14 14 19 17 Storage 12 | . 14 14 14 14 9 9 Energy Gun 21 | . 28 28 28 28 11 4 Ballistic Gun 2 | . . . . . 6 4 Naked Turns . | . . . . . . . Heaviest Build 93 | 14 14 18 18 93 21 18 Greatest Support 59 | 20 20 20 26 26 59 59 Greatest Overweight (x) 4 | 2 . . . 3 . 4 Average Overweight (x) . | . . . . . . . Largest Inventory Capacity 25 | 8 8 8 8 25 25 8 Average Capacity 8 | 7 8 8 8 9 8 8 Most Carried 9 | 6 7 8 8 9 9 8 Average Carried 7 | 3 6 7 7 7 7 6 Final Capacity 25 | 8 8 8 8 25 8 8 Final Carried 9 | 6 7 8 8 9 8 5 Class Distribution -------------------- 100% | Mutant Dominant Class ---------------- Mutant | -10/Materials Mutant | -10/Mines Mutant | -10/Exiles Mutant | -9/Mines Mutant | -8/Materials Mutant | -8/Garrison Resources | -11 -10 -10 -10 -9 -8 -8 ----------- Run | Yrd Mat Min Exi Min Mat Gar Matter Collected 554 | 161 . 117 20 10 171 75 Remotely . | . . . . . . . Salvage Created 866 | 46 27 153 . 166 292 182 Parts 49 | 3 4 5 . 8 20 9 Haulers Intercepted . | . . . . . . . Recyclers Shooed . | . . . . . . . Parts Field Recycled . | . . . . . . . Retrieved Matter . | . . . . . . . Parts Self-Destructed . | . . . . . . . Prevented . | . . . . . . . Kills | -11 -10 -10 -10 -9 -8 -8 ------- Run | Yrd Mat Min Exi Min Mat Gar Combat Hostiles Destroyed 29 | . 2 6 . 6 8 7 Guns 27 | . 2 6 . 6 8 5 Cannons 2 | . . . . . . 2 Classes Destroyed 7 | 1 1 1 . . 3 1 Tunneler 2 | 2 . . . . . . Watcher 1 | . . . . . 1 . Swarmer 17 | . 2 4 . 4 3 4 Grunt 8 | . . 2 . 2 2 2 Brawler 1 | . . . . . 1 . Sentry 2 | . . . . . 2 . Programmer 1 | . . . . . . 1 Best Kill Streak 4 | 2 2 3 . 4 3 4 Combat Bots Only 4 | . 2 3 . 4 3 4 Max Kills in Single Turn 1 | 1 1 1 . 1 1 1 Gunslinging . | . . . . . . . Exploded . | . . . . . . . Melee . | . . . . . . . Uniques/NPCs Destroyed . | . . . . . . . Combat | -11 -10 -10 -10 -9 -8 -8 -------- Run | Yrd Mat Min Exi Min Mat Gar Hostile Shots Fired 294 | . 37 25 . 33 85 114 Missed 78 | . 6 9 . 13 31 19 Damage Taken 2600 | . 249 165 . 200 680 1306 Core 581 | . 28 35 . 51 114 353 Absorbed by Shields 10 | . . . . . . 10 Core Remaining (%) 77 | 100 . . . 54 . . Volleys Fired 126 | 2 9 15 . 17 44 39 Largest 2 | 2 2 2 . 2 2 2 Hottest 131 | 90 90 90 . 90 90 131 Shots Fired 239 | 4 18 30 . 34 85 68 Gun 209 | 4 18 30 . 34 85 38 Cannon 30 | . . . . . . 30 Launcher . | . . . . . . . Special . | . . . . . . . Kinetic 49 | . . . . . 26 23 Thermal 190 | 4 18 30 . 34 59 45 Explosive . | . . . . . . . Electromagnetic . | . . . . . . . Robot Hit Streak 11 | 4 3 11 . 9 8 7 Robot Miss Streak 4 | . 4 3 . 2 4 3 Penetration Max . | . . . . . . . Secondary Targets 6 | . . 2 . 2 2 . Max Gunslinging Chain 1 | . . 1 . 1 1 . Shots Hit Robots 146 | 4 7 20 . 21 53 41 Core Hits 55 | 2 2 9 . 9 20 13 Critical Kills . | . . . . . . . Critical Parts Destroyed . | . . . . . . . Critical Strikes 3 | . 1 1 . 1 . . Burn 3 | . 1 1 . 1 . . Melee Attacks . | . . . . . . . Impact . | . . . . . . . Slashing . | . . . . . . . Piercing . | . . . . . . . Sneak Attacks . | . . . . . . . Combat Hostiles . | . . . . . . . Follow-up Attacks . | . . . . . . . Damage Inflicted 1936 | 48 84 246 . 275 610 673 Guns 1552 | 48 84 235 . 275 610 300 Cannons 373 | . . . . . . 373 Explosions . | . . . . . . . Melee . | . . . . . . . Ramming 11 | . . 11 . . . . Kinetic 251 | . . . . . 118 133 Thermal 1674 | 48 84 235 . 275 492 540 Explosive . | . . . . . . . Electromagnetic . | . . . . . . . Impact . | . . . . . . . Slashing . | . . . . . . . Piercing . | . . . . . . . Highest Corruption 6 | . . . . . . 6 Average Corruption 4 | . . . . . . 4 Corruption Purged . | . . . . . . . Corruption Blocked . | . . . . . . . Effects 2 | . . . . . . 2 Message Errors 2 | . . . . . . 2 Overload Shots . | . . . . . . . Overflow Damage 22 | . . . . . . 22 Projectiles 22 | . . . . . . 22 Explosions . | . . . . . . . Melee . | . . . . . . . Knockbacks 1 | . . 1 . . . . Impact 1 | . . 1 . . . . Kinetic . | . . . . . . . Secondary . | . . . . . . . Self-Inflicted Damage . | . . . . . . . Shots . | . . . . . . . Rammed . | . . . . . . . Targets Rammed 5 | . . 5 . . . . Kicked 5 | . . 5 . . . . Crushed . | . . . . . . . Highest Temperature 484 | 30 240 234 . 330 441 484 Average Temperature 166 | 18 110 85 . 158 176 210 Received Heat Transfer 531 | . . 54 . 42 279 156 Effects 14 | . . . . . 5 9 Shutdowns 3 | . . . . . 1 2 Energy Bleed 4 | . . . . . 2 2 Interference 3 | . . . . . . 3 Matter Decay 3 | . . . . . 1 2 Short Circuit 1 | . . . . . 1 . Siege Activations . | . . . . . . . Robots Corrupted . | . . . . . . . Combat Hostiles . | . . . . . . . Parts Fried . | . . . . . . . Impact Corruptions . | . . . . . . . Robots Melted . | . . . . . . . Combat Hostiles . | . . . . . . . Parts Melted 9 | 2 . 2 . 2 2 1 Heat Transferred 4048 | 124 297 682 . 805 1215 925 Parts Sabotaged . | . . . . . . . Parts Stolen . | . . . . . . . Parts Stripped . | . . . . . . . Power Chain Reactions . | . . . . . . . Alert | -11 -10 -10 -10 -9 -8 -8 ------- Run | Yrd Mat Min Exi Min Mat Gar Peak Influence 284 | 10 109 148 . 130 284 240 Initial 70 | . 6 38 . . 50 70 Average 98 | 1 41 67 . 88 143 181 Maximum Alert Level 1 | . . . . . 1 1 Low Security (%) 88 | 100 100 100 . 100 77 59 Level 1 11 | . . . . . 22 40 Level 2 . | . . . . . . . Level 3 . | . . . . . . . Level 4 . | . . . . . . . Level 5 . | . . . . . . . High Security . | . . . . . . . Max Security . | . . . . . . . Squads Dispatched 1 | . . . . . 1 . Investigation . | . . . . . . . Extermination . | . . . . . . . Reinforcement 1 | . . . . . 1 . Assault . | . . . . . . . Garrison . | . . . . . . . Intercept . | . . . . . . . Searches Triggered . | . . . . . . . Construction Impeded . | . . . . . . . Haulers Reinforced . | . . . . . . . Active Scanning Responses . | . . . . . . . Cargo Convoy Interrupts . | . . . . . . . Stealth | -11 -10 -10 -10 -9 -8 -8 --------- Run | Yrd Mat Min Exi Min Mat Gar Distress Signals 2 | . 1 . . . 1 . Communications Jammed . | . . . . . . . Distress Signals . | . . . . . . . Times Spotted 56 | . 14 6 . 5 18 13 Peak Tracking Total 8 | . 8 3 . 3 4 6 Tactical Retreats 3 | . 1 . . . 1 1 Traps | -11 -10 -10 -10 -9 -8 -8 ------- Run | Yrd Mat Min Exi Min Mat Gar Traps Triggered 2 | . . . . . . 2 Indirectly . | . . . . . . . Trap Hack Attempts . | . . . . . . . Triggered . | . . . . . . . Disarmed . | . . . . . . . Reprogrammed . | . . . . . . . Reused . | . . . . . . . Traps Extracted . | . . . . . . . Installed . | . . . . . . . Triggered . | . . . . . . . Machines | -11 -10 -10 -10 -9 -8 -8 ---------- Run | Yrd Mat Min Exi Min Mat Gar Machines Disabled 4 | . . . . . 1 3 Max in Single Turn 1 | . . . . . 1 1 Machines Repaired . | . . . . . . . Machines Dismantled . | . . . . . . . Machines Sabotaged . | . . . . . . . Overloaded Fab Kills . | . . . . . . . Hacking | -11 -10 -10 -10 -9 -8 -8 --------- Run | Yrd Mat Min Exi Min Mat Gar Machines Accessed 12 | . 3 . 1 . 7 1 Terminals 9 | . 3 . . . 5 1 Fabricators . | . . . . . . . Repair Stations . | . . . . . . . Recycling Units . | . . . . . . . Scanalyzers 1 | . . . . . 1 . Garrison Access 1 | . . . . . 1 . Total Hacks 33 | . 8 . 1 . 20 4 Successful 23 | . 5 . 1 . 17 . Failed 10 | . 3 . . . 3 4 Catastrophic . | . . . . . . . Database Lockouts . | . . . . . . . Manual 18 | . 7 . 1 . 10 . Terminals 28 | . 8 . . . 16 4 Fabricators . | . . . . . . . Repair Stations . | . . . . . . . Recycling Units . | . . . . . . . Scanalyzers 2 | . . . . . 2 . Garrison Access 2 | . . . . . 2 . Terminal Hacks 13 | . 3 . 1 . 9 . Prototype ID Bank 1 | . . . . . 1 . Branch Access Points 1 | . 1 . . . . . Terminal Index 1 | . . . . . 1 . Alert Level 1 | . . . . . 1 . Unreport Threat 1 | . . . . . 1 . Locate Traps 2 | . 1 . . . 1 . Zone Layout 5 | . 1 . . . 4 . Derelict Proto ID Bank 1 | . . . 1 . . . Fabricator Hacks . | . . . . . . . Repair Station Hacks . | . . . . . . . Recycling Unit Hacks . | . . . . . . . Scanalyzer 2 | . . . . . 2 . Insert Component 1 | . . . . . 1 . Analyze 1 | . . . . . 1 . Garrison Access Hacks 1 | . . . . . 1 . Unlock Access 1 | . . . . . 1 . Unauthorized Hacks 7 | . 2 . . . 5 . Terminals 7 | . 2 . . . 5 . Assimilate 1 | . . . . . 1 . Botnet 4 | . 1 . . . 3 . Operators 2 | . 1 . . . 1 . Fabricators . | . . . . . . . Repair Stations . | . . . . . . . Recycling Units . | . . . . . . . Scanalyzers . | . . . . . . . Garrison Access . | . . . . . . . Data Cores Recovered . | . . . . . . . Used . | . . . . . . . Hacking Detections 7 | . 2 . . . 4 1 Full Trace Events . | . . . . . . . Feedback Events . | . . . . . . . Feedback Blocked . | . . . . . . . Robot Schematics Acquired . | . . . . . . . Robots Built . | . . . . . . . Authchips . | . . . . . . . Time . | . . . . . . . Total Robot Build Rating . | . . . . . . . Part Schematics Acquired 1 | . . . . . 1 . Parts Built . | . . . . . . . Authchips . | . . . . . . . Time . | . . . . . . . Total Part Build Rating . | . . . . . . . Parts Repaired . | . . . . . . . Time . | . . . . . . . Parts Recycled . | . . . . . . . Recycled Matter . | . . . . . . . Retrieved Matter . | . . . . . . . Retrieved Components . | . . . . . . . Parts Scanalyzed 1 | . . . . . 1 . Part Schematics Acquired 1 | . . . . . 1 . Parts Damaged . | . . . . . . . Bothacking | -11 -10 -10 -10 -9 -8 -8 ------------ Run | Yrd Mat Min Exi Min Mat Gar Used RIF Installer . | . . . . . . . Robots Hacked . | . . . . . . . Non-combat . | . . . . . . . Combat . | . . . . . . . Robot Hacks Applied . | . . . . . . . Relay Couplers Released . | . . . . . . . Fabnet Peak Effective % . | . . . . . . . Robots Rewired . | . . . . . . . Allies Hacked . | . . . . . . . Hacks Repelled . | . . . . . . . Allies | -11 -10 -10 -10 -9 -8 -8 -------- Run | Yrd Mat Min Exi Min Mat Gar Total Allies 1 | . . . . . 1 . Largest Group 1 | . . . . . 1 . Highest-Rated Group 10 | . . . . . 10 . Highest-Rated Ally 10 | . . . . . 10 . Total Orders 1 | . . . . . 1 . STAY 1 | . . . . . 1 . Ally Attacks . | . . . . . . . Total Damage . | . . . . . . . Kills . | . . . . . . . Allies Corrupted . | . . . . . . . Allies Melted . | . . . . . . . Intel | -11 -10 -10 -10 -9 -8 -8 ------- Run | Yrd Mat Min Exi Min Mat Gar Robot Analysis Total . | . . . . . . . Derelict Logs Recovered 2 | . . 2 . . . . Drone Launches . | . . . . . . . Drone Recoveries . | . . . . . . . Exploration | -11 -10 -10 -10 -9 -8 -8 ------------- Run | Yrd Mat Min Exi Min Mat Gar Turns Passed 2100 | 74 145 789 252 112 512 216 Spaces Moved 1583 | 48 97 594 235 60 459 90 Core 27 | 11 . . . . . 16 Treads . | . . . . . . . Legs 845 | 37 97 594 117 . . . Wheels 178 | . . . 118 60 . . Hover . | . . . . . . . Flight 533 | . . . . . 459 74 Fastest Speed 50 | 50 120 120 90 90 50 50 Average Speed 93 | 109 120 120 104 96 50 69 Slowest Speed 250 | 150 120 120 120 135 50 250 Overloaded Moves . | . . . . . . . Propulsion Burnouts . | . . . . . . . Robots Hopped 4 | . . . . . 4 . Cave-ins Triggered . | . . . . . . . Exploration Rate (%) 38 | 4 32 96 61 13 45 18 Regions Visited 6 Branch Regions 3 Pre-discovered Areas 1 | . . 1 . . . . Known Exits Taken 2 | . 1 . . . 1 . Unknown Exits Taken 4 | 1 . 1 1 1 . . Scrap Searched 2 | . . 1 . 1 . . Spaces Dug . | . . . . . . . Terrain Destroyed . | . . . . . . . Melee . | . . . . . . . Projectile . | . . . . . . . AOE . | . . . . . . . Terrain Rammed . | . . . . . . . Walls Destroyed . | . . . . . . . Machines Disabled . | . . . . . . . Actions | -11 -10 -10 -10 -9 -8 -8 --------- Run | Yrd Mat Min Exi Min Mat Gar Total 1962 | 62 107 638 241 81 654 179 Wait 197 | . 1 20 . . 134 42 Move 1569 | 47 96 593 234 59 450 90 Hop 4 | . . . . . 4 . Pick Up 17 | 6 1 2 1 2 4 1 Fast Attach 12 | 7 . . . . 5 . Attach 8 | . . 2 . 1 1 4 Detach . | . . . . . . . Swap 12 | . . 1 2 1 6 2 Drop 11 | . . . 4 1 6 . Fire 126 | 2 9 15 . 17 44 39 Melee . | . . . . . . . Ram . | . . . . . . . Kick 5 | . . 5 . . . . Crush . | . . . . . . . Escape Stasis 1 | . . . . . . 1 Rewire . | . . . . . . . Trap . | . . . . . . . Miscellaneous . | . . . . . . . Route ------- -11/Scrapyard -10/Materials -10/Mines (discovered 4 exits: [*Mat x2] / *Exi / [*Sub]) -10/Exiles -9/Mines -8/Materials -8/Garrison History --------- Turn | Location | Event 24 | -11/Scrapyard | Discovered new exit (range 15) 75 | -11/Scrapyard | Entered Materials 154 | -10/Materials | Identified exit to Mines 220 | -10/Materials | Entered Mines 302 | -10/Mines | Build established: Mutant 337 | -10/Mines | Discovered new exit (range 8) 412 | -10/Mines | Learned Materials stockpile data 477 | -10/Mines | Discovered new exit (range 14) 602 | -10/Mines | Learned 4 Materials zone layouts 662 | -10/Mines | Learned location of Storage (-7) 889 | -10/Mines | Discovered new exit (range 7) 1004 | -10/Mines | Deemed a non-threat by the Exiles lab entrance 1004 | -10/Mines | Discovered new exit (range 5) 1009 | -10/Mines | Entered Exiles 1037 | -10/Exiles | Met 8R-AWN 1059 | -10/Exiles | Met EX-HEX 1096 | -10/Exiles | Met EX-BIN 1114 | -10/Exiles | Aligned with FarCom system 1115 | -10/Exiles | Given EX-Vault access code 1143 | -10/Exiles | Opened EX-Vault 1155 | -10/Exiles | Found Flying Fortress v7 1176 | -10/Exiles | Warned to stay clear of 0b10 Research branches 1199 | -10/Exiles | Met EX-DEC 1252 | -10/Exiles | Discovered new exit (range 10) 1261 | -10/Exiles | Left Exiles lab with Flying Fortress v7 1261 | -10/Exiles | Entered Mines 1320 | -9/Mines | Discovered new exit (range 9) 1373 | -9/Mines | Entered Materials 1373 | -8/Materials | Evolved 4 slots: Propulsion x2, Utility x2 1878 | -8/Materials | Identified exit to Garrison 1885 | -8/Materials | Entered Garrison 2043 | -8/Garrison | Core integrity fell below 50% 2097 | -8/Garrison | Core integrity fell below 20% 2101 | -8/Garrison | Triggered checkpoint 2101 | -8/Garrison | Self-destructed Last Messages --------------- 02035_ Machine disabled. 02036_ Flying Fortress v7 destroyed. 02038_ Machine disabled. 02041_ Destroyed Shock Rifle. 02042_ Lgt. Deuterium Engine destroyed. 02049_ Overheating: System interference. 02049_ Adv. Beam Cannon temporarily disabled. 02054_ Cesium-ion Thruster destroyed. 02066_ Ion Engine destroyed. 02068_ Acquired Target Analyzer. 02069_ VQ82:WLUB/4I,X85VF05AGO684MT&%G 02082_ Adv. Beam Cannon destroyed. 02092_ Pulse Rifle destroyed. 02096_ Structural Scanner destroyed. 02100_ Triggered Stasis Trap. 02100_ A bubble of rippling energy engulfs the area. 02100_ Field strength at 94. 02101_ Beams of light sweep through the air. An alarm sounds. Map ----- +----------------------------------------------------+ | ????????????# ?????????????????????????????????? | | ????????????# ?????????????????????????????????? | | ????????????# #?????????????????????????????????? | | ????????????# #?????????????????????????????????? | | ????????????# #?????????????????????????????????? | | ????????????# #?????????????????????????????????? | | ????????????# #?????????????????????????????????? | | ????????????# #?????????????????????????????????? | | ????????????# #?????????????????????????????????? | | ???########## ######### #??????????????????????? | | ???# = #??????????????????????? | | ???# %%! #??????????????????????? | | ???# ### ### ########### #??????????????????????? | | ???# ##===## #?????????? ???????????????????????? | | ???# ## ! # #?????????? ???????????????????????? | | ???# ## # #?????????? ???????????????????????? | | ???# #### # #?????????? ???????????????????????? | | ???# #?? # #?????????# #??????????????????????? | | ???# #?? # #?????????# #??????????????????????? | | ???# #??#### #?????????# #??????????????????????? | | ???# #?????# #?????????# #??????????????????????? | | ?### #?????# #???????### #??????????????????????? | | ?# #?????# "???????#g #??????????????????????? | | ?# #?????# "???????#g #??????????????????????? | | ?# #?????# "???????? g #??????????????????????? | | ?######?????# #?????????#@#??????????????????????? | | ????????##### #?????????# #??????????????????????? | | ????????#"T"# ########### #??????????????????????? | | ????????#" != p p #??????????????????????? | | ????????##### #### ######??????????????????????? | | ????????????# #?#"""""#??????????????????????????? | | ????????????# #?#######??????????????????????????? | | ????????????# #??????????????????????????????????? | | ?????######## ##?????????????????????????????????? | | ????#""" #?????????????????????????????????? | | ????# "#?????????????????????????????????? | | ????## #?????????????????????????????????? | | ?????#" "#?????????????????????????????????? | | ?????# """""#?????????????????????????????????? | | ????#" ######?????????????????????????????????? | | ????# ???????????????????????????????????????? | | ????#"" ????????????????????????????????????????? | | ????#""" ????????????????????????????????????????? | | ?????###?????????????????????????????????????????? | | ?????????????????????????????????????????????????? | | ?????????????????????????????????????????????????? | | | | | | | | | +----------------------------------------------------+ Best States ------------- Heat Dissipation 31 Energy Generation 18 Energy Capacity 250 Matter Stores 300 Matter Capacity 300 Sight Range 16 Terrain Scan Density 10 Additional Mass Support 9 Evasion (%) 60 Offensive Hacking 10 Item Schematics ----------------- Lgt. Assault Rifle | -8/Materials | Scanalyzed Robot Schematics ------------------ None Fabricated ------------ Nothing Alien Tech Used ----------------- None Achievements -------------- None Challenges ------------ None Game ------ Seed TitaniumRefineryStreamer Manual? 0 Play Time 00:18:44 Cumulative 38.5 hours Start 2024.04.14 @ 22:13:03 End 2024.04.14 @ 22:29:13 Sessions 1 Manual Loads 0 Difficulty Rogue Special Mode None Game No. 105 Rogue 103 Adventurer 2 Explorer 0 Win Type - Total 0 Types 0/0/0/0/0/0/0/0/0 Lore% 31 Gallery% 44 Achievement% 33 Wizard Run 0 Options --------- Layout 2 ASCII 0 Keyboard 0 Movement Arrows Keybinds 0 Fullscreen 2 Font 24/Smallcaps Map View 50x44 Zoom Use 0% Tactical HUD 1 Map Filters NONE Filters NONE Steam 1 RUN: b28443ec-b236-4fe2-96ff-f0838d99e96a